Workbook

Sheet Figure4-A
A1: Source data of Figure 4A
B4: Flourescence Intensity measured by Image J | M4: Relative Flourescence Intensity
B6: Control RNAi | E6: daf-15 RNAi | H6: ragc-1 RNAi | M6: Control RNAi | P6: daf-15 RNAi | S6: ragc-1 RNAi
B7: n=19 | C7: n=18 | E7: n=30 | F7: n=27 | H7: n=23 | I7: n=23
B8: HK | C8: HK+VB2 | E8: HK | F8: HK+VB2 | H8: HK | I8: HK+VB2 | M8: HK | N8: HK+VB2 | P8: HK | Q8: HK+VB2 | S8: HK | T8: HK+VB2
B9: 7 | C9: 28.5 | E9: 10.9 | F9: 11.8 | H9: 6.3 | I9: 16.7 | M9: 0.5447693946 | N9: 2.217989678 | P9: 0.8482837716 | Q9: 0.9183255509 | S9: 0.4902924551 | T9: 1.299664127
B10: 19.51 | C10: 61.1 | E10: 48.6 | F10: 6.8 | H10: 9.6 | I10: 8.5 | M10: 1.518350127 | N10: 4.755058573 | P10: 3.782256083 | Q10: 0.5292045548 | S10: 0.7471123126 | T10: 0.6615056935
B11: 24.6 | C11: 67.6 | E11: 11.6 | F11: 8.7 | H11: 7.3 | I11: 29.9 | M11: 1.914475301 | N11: 5.260915868 | P11: 0.9027607111 | Q11: 0.6770705333 | S11: 0.5681166544 | T11: 2.326943557
B12: 13.8 | C12: 68.2 | E12: 11.8 | F12: 8.8 | H12: 8.6 | I12: 31.6 | M12: 1.073973949 | N12: 5.307610387 | P12: 0.9183255509 | Q12: 0.6848529532 | S12: 0.6692881134 | T12: 2.459244696
B13: 17.9 | C13: 59.2 | E13: 10.7 | F13: 6.6 | H13: 17.7 | I13: 9.1 | M13: 1.393053166 | N13: 4.607192594 | P13: 0.8327189318 | Q13: 0.5136397149 | S13: 1.377488326 | T13: 0.708200213
B14: 7.6 | C14: 83.9 | E14: 5.9 | F14: 11.2 | H14: 11.6 | I14: 6.6 | M14: 0.5914639141 | N14: 6.529450315 | P14: 0.4591627755 | Q14: 0.8716310314 | S14: 0.9027607111 | T14: 0.5136397149
B15: 18.1 | C15: 69.6 | E15: 8.5 | F15: 13.4 | H15: 7.5 | I15: 7.1 | M15: 1.408618006 | N15: 5.416564266 | P15: 0.6615056935 | Q15: 1.04284427 | S15: 0.5836814942 | T15: 0.5525518145
B16: 14.4 | C16: 54.1 | E16: 10.9 | F16: 11.3 | H16: 6.3 | I16: 7.6 | M16: 1.120668469 | N16: 4.210289178 | P16: 0.8482837716 | Q16: 0.8794134513 | S16: 0.4902924551 | T16: 0.5914639141
B17: 6.2 | C17: 53.9 | E17: 12.2 | F17: 7.8 | H17: 8.9 | I17: 9.4 | M17: 0.4825100352 | N17: 4.194724338 | P17: 0.9494552306 | Q17: 0.607028754 | S17: 0.6926353731 | T17: 0.7315474728
B18: 9.05 | C18: 44.1 | E18: 8.1 | F18: 6.5 | H18: 9.4 | I18: 14.9 | M18: 0.704309003 | N18: 3.432047186 | P18: 0.6303760138 | Q18: 0.505857295 | S18: 0.7315474728 | T18: 1.159580569
B19: 7.4 | C19: 18.6 | E19: 10.1 | F19: 9.6 | H19: 26.4 | I19: 55.7 | M19: 0.5758990743 | N19: 1.447530106 | P19: 0.7860244122 | Q19: 0.7471123126 | S19: 2.05455886 | T19: 4.334807897
B20: 4.88 | C20: 56.7 | E20: 15 | F20: 10.4 | H20: 6.6 | I20: 7.4 | M20: 0.3797820922 | N20: 4.412632096 | P20: 1.167362988 | Q20: 0.809371672 | S20: 0.5136397149 | T20: 0.5758990743
B21: 9.2 | C21: 50.9 | E21: 8.2 | F21: 10.9 | H21: 10.7 | I21: 8.6 | M21: 0.7159826329 | N21: 3.961251741 | P21: 0.6381584337 | Q21: 0.8482837716 | S21: 0.8327189318 | T21: 0.6692881134
B22: 24.2 | C22: 65.3 | E22: 11.7 | F22: 10.6 | H22: 8.5 | I22: 25.8 | M22: 1.883345621 | N22: 5.08192021 | P22: 0.910543131 | Q22: 0.8249365118 | S22: 0.6615056935 | T22: 2.00786434
B23: 10.5 | C23: 24.6 | E23: 12.4 | F23: 56.3 | H23: 9.5 | I23: 9.9 | M23: 0.8171540919 | N23: 1.914475301 | P23: 0.9650200705 | Q23: 4.381502417 | S23: 0.7393298927 | T23: 0.7704595724
B24: 15.1 | C24: 59.9 | E24: 7.4 | F24: 7.6 | H24: 23.6 | I24: 8.1 | M24: 1.175145408 | N24: 4.661669534 | P24: 0.5758990743 | Q24: 0.5914639141 | S24: 1.836651102 | T24: 0.6303760138
B25: 8.2 | C25: 36.6 | E25: 8.5 | F25: 7.6 | H25: 6.4 | I25: 6.9 | M25: 0.6381584337 | N25: 2.848365692 | P25: 0.6615056935 | Q25: 0.5914639141 | S25: 0.4980748751 | T25: 0.5369869747
B26: 14.6 | C26: 27.3 | E26: 16.8 | F26: 10.6 | H26: 51.3 | I26: 34.3 | M26: 1.136233309 | N26: 2.124600639 | P26: 1.307446547 | Q26: 0.8249365118 | S26: 3.99238142 | T26: 2.669370034
B27: 11.9 | E27: 7.1 | F27: 9.9 | H27: 6.7 | I27: 17.6 | M27: 0.9261079708 | P27: 0.5525518145 | Q27: 0.7704595724 | S27: 0.5214221348 | T27: 1.369705906
E28: 7 | F28: 25.4 | H28: 22.6 | I28: 8 | P28: 0.5447693946 | Q28: 1.97673466 | S28: 1.758826903 | T28: 0.6225935938
E29: 13.6 | F29: 10.2 | H29: 29.4 | I29: 8.3 | P29: 1.05840911 | Q29: 0.7938068321 | S29: 2.288031457 | T29: 0.6459408536
E30: 12.2 | F30: 8.3 | H30: 6.9 | I30: 18 | P30: 0.9494552306 | Q30: 0.6459408536 | S30: 0.5369869747 | T30: 1.400835586
E31: 9.4 | F31: 9.2 | H31: 13.71818182 | I31: 15.4 | P31: 0.7315474728 | Q31: 0.7159826329 | S31: 1.06 | T31: 1.198492668
E32: 16.1 | F32: 7.1 | P32: 1.252969608 | Q32: 0.5525518145
E33: 9.9 | F33: 29.3 | P33: 0.7704595724 | Q33: 2.280249037
E34: 8.9 | F34: 13.8 | P34: 0.6926353731 | Q34: 1.073973949
E35: 8.1 | F35: 10.6 | P35: 0.6303760138 | Q35: 0.8249365118
E36: 24.4 | P36: 1.898910461
E37: 14.6 | P37: 1.136233309
E38: 10.6 | P38: 0.8249365118
A39: Average | B39: =AVERAGE(B9:B38) -> 12.84947368 | C39: =AVERAGE(C9:C38) -> 51.67222222 | E39: 12.37333333 | F39: 12.6037037 | H39: 13.71818182 | I39: 15.88695652 | L39: Average | M39: 1 | N39: 4.021349317 | P39: 0.9629447585 | Q39: 0.9808731481 | S39: 1.067275797 | T39: 1.23638967

Sheet Figure4-B
A1: Source data of Figure 4B
B5: HK | C5: total seam cell=221
C6: puncta/seam cell | J6: Average puncta/seam cells
B7: Worm-1 | C7: 4 | D7: 3 | E7: 2 | F7: 3 | J7: =AVERAGE(C7:I7) -> 3
B8: worm-2 | C8: 2 | D8: 0 | E8: 1 | J8: 1
B9: worm-3 | C9: 4 | D9: 4 | E9: 2 | J9: 3.333333333
B10: worm-4 | C10: 3 | D10: 3 | E10: 2 | J10: 2.666666667
B11: worm-5 | C11: 4 | D11: 4 | J11: 4
B12: worm-6 | C12: 3 | D12: 2 | E12: 5 | J12: 3.333333333
B13: worm-7 | C13: 5 | D13: 10 | E13: 10 | F13: 6 | J13: 7.75
B14: worm-8 | C14: 6 | D14: 9 | E14: 7 | F14: 5 | J14: 6.75
B15: worm-9 | C15: 2 | D15: 1 | E15: 3 | F15: 2 | G15: 4 | H15: 2 | J15: 2.333333333
B16: worm-10 | C16: 0 | D16: 3 | E16: 4 | J16: 2.333333333
B17: worm-11 | C17: 2 | D17: 4 | E17: 4 | J17: 3.333333333
B18: worm-12 | C18: 3 | D18: 3 | E18: 3 | J18: 3
B19: worm-13 | C19: 2 | D19: 3 | E19: 6 | F19: 3 | G19: 1 | J19: 3
B20: worm-14 | C20: 0 | D20: 3 | E20: 2 | J20: 1.666666667
B21: worm-15 | C21: 3 | D21: 3 | E21: 3 | F21: 2 | G21: 3 | J21: 2.8
B22: worm-16 | C22: 3 | D22: 4 | E22: 6 | F22: 3 | G22: 3 | J22: 3.8
B23: worm-17 | C23: 3 | D23: 5 | E23: 7 | F23: 3 | G23: 3 | J23: 4.2
B24: worm-18 | C24: 3 | D24: 3 | E24: 5 | F24: 1 | J24: 3
B25: worm-19 | C25: 1 | D25: 0 | E25: 2 | J25: 1
B26: worm-20 | C26: 1 | D26: 3 | E26: 2 | F26: 2 | G26: 1 | H26: 1 | J26: 1.666666667
B27: worm-21 | C27: 2 | D27: 3 | E27: 3 | F27: 7 | J27: 3.75
B28: worm-22 | C28: 2 | D28: 3 | E28: 3 | J28: 2.666666667
B29: worm-23 | C29: 2 | D29: 3 | E29: 2 | F29: 0 | G29: 1 | J29: 1.6
B30: worm-24 | C30: 2 | D30: 0 | E30: 2 | F30: 0 | G30: 0 | J30: 0.8
B31: worm-25 | C31: 2 | D31: 6 | E31: 8 | J31: 5.333333333
B32: worm-26 | C32: 4 | D32: 0 | J32: 2
B33: worm-27 | C33: 4 | D33: 2 | J33: 3
B34: worm-28 | C34: 2 | D34: 2 | E34: 2 | F34: 3 | G34: 4 | J34: 2.6
B35: worm-29 | C35: 3 | D35: 0 | E35: 5 | F35: 5 | G35: 5 | H35: 1 | J35: 3.166666667
B36: worm-30 | C36: 5 | D36: 2 | E36: 5 | J36: 4
B37: worm-31 | C37: 3 | D37: 2 | E37: 1 | F37: 1 | J37: 1.75
B38: worm-32 | C38: 2 | D38: 5 | E38: 3 | F38: 3 | J38: 3.25
B39: worm-33 | C39: 2 | D39: 2 | E39: 1 | F39: 1 | J39: 1.5
B40: worm-34 | C40: 1 | D40: 2 | J40: 1.5
B41: worm-35 | C41: 0 | D41: 2 | E41: 0 | J41: 0.6666666667
B42: worm-36 | C42: 4 | D42: 2 | J42: 3
B43: worm-37 | C43: 6 | D43: 5 | E43: 3 | J43: 4.666666667
B44: worm-38 | C44: 3 | D44: 1 | J44: 2
B45: worm-39 | C45: 2 | D45: 0 | J45: 1
B46: worm-40 | C46: 3 | D46: 3 | E46: 3 | F46: 2 | G46: 3 | J46: 2.8
B47: worm-41 | C47: 2 | D47: 2 | E47: 2 | F47: 5 | G47: 1 | J47: 2.4
B48: worm-42 | C48: 1 | D48: 1 | E48: 2 | F48: 0 | J48: 1
B49: worm-43 | C49: 3 | D49: 2 | E49: 2 | J49: 2.333333333
B50: worm-44 | C50: 3 | D50: 4 | E50: 0 | F50: 3 | J50: 2.5
B51: worm-45 | C51: 6 | D51: 5 | E51: 2 | F51: 5 | J51: 4.5
B52: worm-46 | C52: 5 | D52: 4 | E52: 3 | F52: 4 | G52: 6 | H52: 5 | J52: 4.5
B53: worm-47 | C53: 3 | D53: 5 | E53: 4 | F53: 4 | G53: 3 | J53: 3.8
B54: worm-48 | C54: 0 | D54: 3 | E54: 5 | J54: 2.666666667
B55: worm-49 | C55: 3 | D55: 4 | E55: 3 | F55: 2 | J55: 3
B56: worm-50 | C56: 3 | D56: 3 | E56: 4 | F56: 6 | G56: 5 | J56: 4.2
B57: worm-51 | C57: 5 | D57: 3 | J57: 4
B58: worm-52 | C58: 4 | D58: 6 | E58: 4 | F58: 5 | G58: 3 | H58: 4 | I58: 3 | J58: 4.142857143
B59: worm-53 | C59: 6 | J59: 6
B60: worm-54 | C60: 1 | D60: 0 | E60: 0 | J60: 0.3333333333
B61: worm-55 | C61: 6 | D61: 3 | E61: 2 | F61: 0 | G61: 4 | H61: 4 | J61: 3.166666667
B62: worm-56 | C62: 4 | D62: 7 | E62: 6 | F62: 6 | J62: 5.75
B63: worm-57 | C63: 5 | D63: 2 | E63: 3 | J63: 3.333333333
B64: worm-58 | C64: 3 | D64: 5 | E64: 2 | J64: 3.333333333
B65: worm-59 | C65: 5 | D65: 6 | E65: 5 | F65: 6 | J65: 5.5
J66: =AVERAGE(J7:J65) -> 3.075867635
B69: HK+VB2 | C69: total seam cell=116
C70: puncta/seam cell | J70: Average puncta/seam cells
B71: Worm-1 | C71: 2 | D71: 1 | E71: 0 | F71: 2 | J71: =AVERAGE(C71:I71) -> 1.25
B72: worm-2 | C72: 0 | D72: 2 | E72: 0 | F72: 1 | G72: 1 | H72: 2 | J72: 1
B73: worm-3 | C73: 1 | D73: 0 | E73: 0 | F73: 0 | G73: 0 | H73: 1 | J73: 0.3333333333
B74: worm-4 | C74: 0 | D74: 0 | E74: 0 | J74: 0
B75: worm-5 | C75: 0 | D75: 0 | J75: 0
B76: worm-6 | C76: 1 | D76: 3 | E76: 2 | F76: 2 | G76: 2 | J76: 2
B77: worm-7 | C77: 0 | D77: 1 | E77: 0 | J77: 0.3333333333
B78: worm-8 | C78: 2 | D78: 1 | E78: 1 | J78: 1.333333333
B79: worm-9 | C79: 3 | D79: 3 | E79: 2 | J79: 2.666666667
B80: worm-10 | C80: 0 | D80: 1 | E80: 1 | J80: 0.6666666667
B81: worm-11 | C81: 2 | D81: 0 | E81: 0 | J81: 0.6666666667
B82: worm-12 | C82: 1 | D82: 0 | E82: 0 | J82: 0.3333333333
B83: worm-13 | C83: 1 | D83: 1 | E83: 1 | F83: 2 | J83: 1.25
B84: worm-14 | C84: 0 | D84: 2 | E84: 0 | J84: 0.6666666667
B85: worm-15 | C85: 0 | D85: 3 | E85: 0 | F85: 0 | G85: 1 | J85: 0.8
B86: worm-16 | C86: 0 | D86: 1 | E86: 2 | F86: 2 | G86: 1 | J86: 1.2
B87: worm-17 | C87: 0 | D87: 1 | E87: 0 | J87: 0.3333333333
B88: worm-18 | C88: 2 | D88: 1 | E88: 1 | J88: 1.333333333
B89: worm-19 | C89: 1 | D89: 1 | E89: 0 | J89: 0.6666666667
B90: worm-20 | C90: 1 | D90: 2 | E90: 0 | F90: 0 | J90: 0.75
B91: worm-21 | C91: 0 | D91: 0 | E91: 0 | F91: 0 | G91: 0 | J91: 0
B92: worm-22 | C92: 0 | D92: 0 | E92: 0 | J92: 0
B93: worm-23 | C93: 0 | D93: 0 | E93: 0 | F93: 0 | G93: 1 | J93: 0.2
B94: worm-24 | C94: 2 | D94: 1 | E94: 1 | F94: 1 | G94: 1 | J94: 1.2
B95: worm-25 | C95: 1 | D95: 1 | E95: 1 | F95: 1 | G95: 1 | J95: 1
B96: worm-26 | C96: 0 | D96: 0 | E96: 0 | F96: 0 | G96: 0 | J96: 0
B97: worm-27 | C97: 2 | D97: 0 | E97: 1 | F97: 2 | G97: 1 | H97: 1 | I97: 2 | J97: 1.285714286
B98: worm-28 | C98: 2 | D98: 4 | E98: 4 | F98: 0 | J98: 2.5
B99: worm-29 | C99: 0 | D99: 1 | E99: 1 | F99: 0 | J99: 0.5
B100: worm-30 | C100: 3 | D100: 3 | E100: 2 | F100: 0 | J100: 2
B101: worm-31 | C101: 4 | D101: 4 | E101: 3 | F101: 3 | G101: 4 | J101: 3.6
B102: worm-32 | C102: 3 | D102: 3 | E102: 2 | J102: 2.666666667
B103: worm-33 | C103: 2 | D103: 0 | E103: 0 | J103: 0.6666666667
B104: worm-34 | C104: 0 | D104: 1 | E104: 0 | F104: 1 | G104: 0 | J104: 0.4
B105: worm-35 | C105: 0 | D105: 0 | E105: 0 | J105: 0
B106: worm-36 | C106: 2 | D106: 1 | E106: 0 | J106: 1
B107: worm-37 | C107: 1 | D107: 0 | E107: 0 | F107: 0 | J107: 0.25
B108: worm-38 | C108: 1 | D108: 1 | E108: 1 | F108: 0 | G108: 0 | J108: 0.6
B109: worm-39 | C109: 0 | D109: 0 | E109: 1 | F109: 1 | G109: 2 | J109: 0.8
B110: worm-40 | C110: 0 | D110: 0 | E110: 0 | F110: 0 | G110: 0 | J110: 0
B111: worm-41 | C111: 2 | D111: 0 | E111: 0 | F111: 0 | J111: 0.5
J112: =AVERAGE(J71:J111) -> 0.8963995354
B115: Live | C115: total seam cell=192
C116: puncta/seam cell | J116: Average puncta/seam cells
B117: Worm-1 | C117: 0 | J117: =AVERAGE(C117:H117) -> 0
B118: worm-2 | C118: 1 | D118: 1 | J118: 1
B119: worm-3 | C119: 0 | D119: 0 | J119: 0
B120: worm-4 | C120: 1 | D120: 0 | E120: 2 | J120: 1
B121: worm-5 | C121: 2 | D121: 3 | E121: 1 | F121: 0 | J121: 1.5
B122: worm-6 | C122: 3 | D122: 0 | J122: 1.5
B123: worm-7 | C123: 0 | D123: 1 | E123: 0 | J123: 0.3333333333
B124: worm-8 | C124: 1 | D124: 0 | J124: 0.5
B125: worm-9 | C125: 0 | D125: 0 | E125: 0 | J125: 0
B126: worm-10 | C126: 1 | D126: 1 | E126: 0 | J126: 0.6666666667
B127: worm-11 | C127: 1 | D127: 0 | J127: 0.5
B128: worm-12 | C128: 0 | D128: 0 | J128: 0
B129: worm-13 | C129: 0 | D129: 0 | J129: 0
B130: worm-14 | C130: 2 | D130: 2 | J130: 2
B131: worm-15 | C131: 0 | D131: 0 | J131: 0
B132: worm-16 | C132: 2 | D132: 1 | J132: 1.5
B133: worm-17 | C133: 1 | J133: 1
B134: worm-18 | C134: 0 | J134: 0
B135: worm-19 | C135: 0 | D135: 0 | J135: 0
B136: worm-20 | C136: 0 | D136: 0 | E136: 0 | J136: 0
B137: worm-21 | C137: 1 | D137: 0 | J137: 0.5
B138: worm-22 | C138: 0 | D138: 1 | J138: 0.5
B139: worm-23 | C139: 1 | J139: 1
B140: worm-24 | C140: 0 | D140: 0 | J140: 0
B141: worm-25 | C141: 0 | D141: 0 | E141: 0 | J141: 0
B142: worm-26 | C142: 2 | D142: 0 | J142: 1
B143: worm-27 | C143: 1 | D143: 2 | E143: 1 | F143: 1 | J143: 1.25
B144: worm-28 | C144: 2 | D144: 2 | E144: 0 | J144: 1.333333333
B145: worm-29 | C145: 2 | D145: 0 | J145: 1
B146: worm-30 | C146: 2 | D146: 1 | J146: 1.5
B147: worm-31 | C147: 2 | D147: 2 | E147: 2 | F147: 2 | J147: 2
B148: worm-32 | C148: 3 | D148: 0 | J148: 1.5
B149: worm-33 | C149: 2 | D149: 0 | E149: 0 | J149: 0.6666666667
B150: worm-34 | C150: 3 | D150: 0 | J150: 1.5
B151: worm-35 | C151: 1 | D151: 0 | J151: 0.5
B152: worm-36 | C152: 4 | D152: 1 | E152: 0 | J152: 1.666666667
B153: worm-37 | C153: 1 | D153: 0 | E153: 0 | J153: 0.3333333333
B154: worm-38 | C154: 2 | D154: 2 | E154: 0 | F154: 1 | G154: 0 | J154: 1
B155: worm-39 | C155: 2 | D155: 2 | E155: 0 | J155: 1.333333333
B156: worm-40 | C156: 1 | D156: 0 | E156: 0 | F156: 0 | J156: 0.25
B157: worm-41 | C157: 2 | D157: 0 | E157: 1 | F157: 1 | G157: 1 | J157: 1
B158: worm-42 | C158: 0 | D158: 0 | J158: 0
B159: worm-43 | C159: 0 | D159: 0 | J159: 0
B160: worm-44 | C160: 0 | J160: 0
B161: worm-45 | C161: 0 | D161: 0 | J161: 0
B162: worm-46 | C162: 2 | D162: 0 | J162: 1
B163: worm-47 | C163: 2 | D163: 0 | E163: 0 | F163: 1 | J163: 0.75
B164: worm-48 | C164: 1 | D164: 0 | E164: 1 | F164: 2 | G164: 0 | J164: 0.8
B165: worm-49 | C165: 0 | D165: 0 | E165: 1 | F165: 0 | J165: 0.25
B166: worm-50 | C166: 0 | D166: 0 | E166: 0 | J166: 0
B167: worm-51 | C167: 0 | D167: 0 | E167: 0 | F167: 0 | G167: 0 | J167: 0
B168: worm-52 | C168: 0 | D168: 0 | E168: 0 | F168: 0 | G168: 0 | J168: 0
B169: worm-53 | C169: 2 | D169: 1 | J169: 1.5
B170: worm-54 | C170: 1 | D170: 1 | E170: 0 | F170: 0 | G170: 1 | J170: 0.6
B171: worm-55 | C171: 0 | D171: 0 | E171: 0 | F171: 0 | G171: 0 | J171: 0
B172: worm-56 | C172: 0 | D172: 0 | J172: 0
B173: worm-57 | C173: 3 | D173: 0 | E173: 0 | F173: 0 | J173: 0.75
B174: worm-58 | C174: 0 | D174: 0 | E174: 0 | J174: 0
B175: worm-59 | C175: 0 | D175: 0 | J175: 0
B176: worm-60 | C176: 2 | D176: 0 | J176: 1
B177: worm-61 | D177: 0 | J177: 0
B178: worm-62 | C178: 0 | D178: 0 | E178: 0 | J178: 0
B179: worm-63 | C179: 0 | D179: 0 | E179: 1 | F179: 0 | G179: 2 | J179: 0.6
B180: worm-64 | C180: 1 | D180: 0 | E180: 1 | F180: 3 | J180: 1.25
B181: worm-65 | C181: 3 | J181: =AVERAGE(C181:H181) -> 3
B182: worm-66 | C182: 0 | D182: 0 | E182: 0 | J182: 0
B183: worm-67 | C183: 0 | D183: 0 | E183: 0 | J183: 0
B184: worm-68 | C184: 0 | D184: 0 | J184: 0
B185: worm-69 | C185: 0 | D185: 0 | J185: 0
B186: worm-70 | C186: 0 | D186: 0 | J186: 0
B187: worm-71 | C187: 5 | D187: 1 | E187: 1 | J187: 2.333333333
J188: =AVERAGE(J117:J187) -> 0.6361502347

Sheet Figure4-C
A1: Source data of Figure 4C
C4: Flourescence Intensity measured by Image J | G4: Relative Flourescence Intensity
C5: wt (N2) (n=28) | D5: nprl-3 (lf) (n=18) | G5: wt (N2) (n=28) | H5: nprl-3 (lf) (n=18)
C6: 2.4 | D6: 5.5 | G6: 0.5140365639 | H6: 1.178000459
C7: 2.7 | D7: 12.2 | G7: 0.5782911344 | H7: 2.6130192
C8: 1.9 | D8: 17.1 | G8: 0.4069456131 | H8: 3.662510518
C9: 5 | D9: 8.7 | G9: 1.070909508 | H9: 1.863382544
C10: 2.9 | D10: 3.9 | G10: 0.6211275147 | H10: 0.8353094164
C11: 9 | D11: 10.7 | G11: 1.927637115 | H11: 2.291746347
C12: 1.9 | D12: 3.3 | G12: 0.4069456131 | H12: 0.7068002754
C13: 2 | D13: 8.5 | G13: 0.4283638033 | H13: 1.820546164
C14: 4.99 | D14: 10.34 | G14: 1.068767689 | H14: 2.214640863
C15: 5.6 | D15: 8.2 | G15: 1.199418649 | H15: 1.756291593
C16: 9 | D16: 3.4 | G16: 1.927637115 | H16: 0.7282184655
C17: 1.99 | D17: 8.1 | G17: 0.4262219842 | H17: 1.734873403
C18: 2.86 | D18: 15.5 | G18: 0.6125602387 | H18: 3.319819475
C19: 2.3 | D19: 12.76 | G19: 0.4926183737 | H19: 2.732961065
C20: 1.8 | D20: 5.8 | G20: 0.3855274229 | H20: 1.242255029
C21: 7.4 | D21: 8.2 | G21: 1.584946072 | H21: 1.756291593
C22: 8.9 | D22: 9 | G22: 1.906218925 | H22: 1.927637115
C23: 5 | D23: 24.6 | G23: 1.070909508 | H23: 5.26887478
C24: 5.8 | G24: 1.242255029
C25: 4.3 | G25: 0.920982177
C26: 2.2 | G26: 0.4712001836
C27: 3.5 | G27: 0.7496366557
C28: 3.5 | G28: 0.7496366557
C29: 23 | G29: 4.926183737
C30: 2.7 | G30: 0.5782911344
C31: 2.53 | G31: 0.5418802111
C32: 2.81 | G32: 0.6018511436
C33: 2.75 | G33: 0.5890002295
B34: Average | C34: =AVERAGE(C6:C33) -> 4.668928571 | D34: 9.766666667 | G34: 1 | H34: 2.091843239
B37: The WT data is the same as that in Figure 2F (WT on HK condition), as the data for both pairs of figures were generated from the same set of experiments.

Sheet Figure4-E
A1: Source data of Figure 4E
D3: Gonad Length (um) measured by Image J
D5: wt (N2) (n=52) | E5: nprl-3 (lf) (n=52)
D6: 51.29156999 | E6: 127.1461717
D7: 46.4191802 | E7: 127.3472544
D8: 35.37509667 | E8: 57.30858469
D9: 27.9350348 | E9: 49.96133024
D10: 40.18561485 | E10: 56.2103635
D11: 30.5800464 | E11: 114.2459397
D12: 40.92807425 | E12: 87.34725445
D13: 36.07115236 | E13: 147.0224285
D14: 41.1136891 | E14: 160.9899459
D15: 38.02010828 | E15: 60.3866976
D16: 38.26759474 | E16: 58.63882444
D17: 31.95668987 | E17: 47.70301624
D18: 36.93735499 | E18: 51.81747873
D19: 29.28074246 | E19: 115.9319412
D20: 33.84377417 | E20: 48.6929621
D21: 35.77726218 | E21: 60.91260634
D22: 42.69141531 | E22: 93.03944316
D23: 39.21113689 | E23: 115.5143078
D24: 44.67130704 | E24: 43.54215004
D25: 34.89559165 | E25: 78.82443929
D26: 36.04021655 | E26: 75.71539056
D27: 35.82366589 | E27: 120.3866976
D28: 41.45398299 | E28: 129.8066512
D29: 30.85846868 | E29: 72.28151585
D30: 52.14230472 | E30: 106.620263
D31: 44.36194896 | E31: 56.34957463
D32: 32.29698376 | E32: 64.94972931
D33: 28.84764114 | E33: 54.7254447
D34: 29.24980665 | E34: 103.2946636
D35: 31.3070379 | E35: 120.6187162
D36: 34.50889404 | E36: 69.4354215
D37: 42.16550657 | E37: 60.7579273
D38: 36.81361176 | E38: 79.48955916
D39: 42.59860789 | E39: 44.09899459
D40: 38.82443929 | E40: 70.90487239
D41: 30.96674401 | E41: 46.31090487
D42: 40.20108275 | E42: 94.10672854
D43: 33.37973705 | E43: 54.80278422
D44: 41.56225831 | E44: 36.41144625
D45: 29.83758701 | E45: 97.16937355
D46: 33.47254447 | E46: 50.42536736
D47: 43.21732405 | E47: 159.8607889
D48: 43.83604022 | E48: 76.25676721
D49: 33.41067285 | E49: 71.97215777
D50: 43.61948956 | E50: 45.36736272
D51: 34.01392111 | E51: 49.57463264
D52: 60.20108275 | E52: 49.4508894
D53: 40.91260634 | E53: 68.97138438
D54: 43.72776489 | E54: 79.04098995
D55: 37.07656613 | E55: 103.0007734
D56: 37.7262181 | E56: 45.25908739
D57: 33.76643465 | E57: 51.86388244
C58: Average | D58: =AVERAGE(D6:D57) -> 37.95526206 | E58: =AVERAGE(E6:E57) -> 79.07430543

Sheet Figure4-F
A1: Source data of Figure 4F
E5: NO. of worm on each location | J5: Percentage of worm on each loaction
E6: HK | F6: HK+VB2 | G6: Wandeirng | H6: Total | J6: HK | K6: HK+VB2 | L6: Wandeirng
C7: WT (N2) | D7: Replicate-1 | E7: 11 | F7: 20 | G7: 29 | H7: =SUM(E7:G7) -> 60 | J7: =E7/H7 -> 0.1833333333 | K7: =F7/H7 -> 0.3333333333 | L7: =G7/H7 -> 0.4833333333
D8: Replicate-2 | E8: 14 | F8: 29 | G8: 60 | H8: 103 | J8: 0.1359223301 | K8: 0.2815533981 | L8: 0.5825242718
D9: Replicate-3 | E9: 15 | F9: 29 | G9: 41 | H9: 85 | J9: 0.1764705882 | K9: 0.3411764706 | L9: 0.4823529412
D10: Replicate-4 | E10: 6 | F10: 25 | G10: 46 | H10: 77 | J10: 0.07792207792 | K10: 0.3246753247 | L10: 0.5974025974
D11: Replicate-5 | E11: 20 | F11: 32 | G11: 42 | H11: 94 | J11: 0.2127659574 | K11: 0.3404255319 | L11: 0.4468085106
H12: =SUM(H7:H11) -> 419 | J12: =AVERAGE(J7:J11) -> 0.1572828574 | K12: 0.3242328117 | L12: 0.5184843309
E14: NO. of worm on each location | J14: Percentage of worm on each loaction
E15: HK | F15: HK+VB2 | G15: Wandeirng | H15: Total | J15: HK | K15: HK+VB2 | L15: Wandeirng
C16: nprl-3 (lf) | D16: Replicate-1 | E16: 16 | F16: 14 | G16: 20 | H16: =SUM(E16:G16) -> 50 | J16: =E16/H16 -> 0.32 | K16: =F16/H16 -> 0.28 | L16: =G16/H16 -> 0.4
D17: Replicate-2 | E17: 22 | F17: 29 | G17: 49 | H17: 100 | J17: 0.22 | K17: 0.29 | L17: 0.49
D18: Replicate-3 | E18: 30 | F18: 29 | G18: 44 | H18: 103 | J18: 0.2912621359 | K18: 0.2815533981 | L18: 0.427184466
D19: Replicate-4 | E19: 34 | F19: 41 | G19: 68 | H19: 143 | J19: 0.2377622378 | K19: 0.2867132867 | L19: 0.4755244755
D20: Replicate-5 | E20: 21 | F20: 26 | G20: 65 | H20: 112 | J20: 0.1875 | K20: 0.2321428571 | L20: 0.5803571429
H21: =SUM(H16:H20) -> 508 | J21: =AVERAGE(J16:J20) -> 0.2513048747 | K21: 0.2740819084 | L21: 0.4746132169
C24: The WT data is the same as that in Figure 3D, as the data for both pairs of figures were generated from the same set of experiments.

Sheet Figure4-G
A1: Source data of Figure 4G
D5: NO. of worm on each location | E5: Replicate-1 | F5: Replicate-2 | G5: Replicate-3
C6: WT (N2) | D6: On HK food | E6: 5 | F6: 3 | G6: 9
D7: Wandering | E7: 25 | F7: 27 | G7: 30
E8: =SUM(E6:E7) -> 30 | F8: 30 | G8: 39 | H8: =SUM(E8:G8) -> 99
C11: nprl-3 (lf) | D11: On HK food | E11: 56 | F11: 86 | G11: 40
D12: Wandering | E12: 61 | F12: 124 | G12: 96
E13: =SUM(E11:E12) -> 117 | F13: 210 | G13: 136 | H13: =SUM(E13:G13) -> 463
D16: Percentage of worm on each location | E16: Replicate-1 | F16: Replicate-2 | G16: Replicate-3
C17: WT (N2) | D17: On HK food | E17: 0.1666666667 | F17: 0.1 | G17: =9/39 -> 0.2307692308 | H17: =AVERAGE(E17:G17) -> 0.1658119658
D18: Wandering | E18: 0.8333333333 | F18: 0.9 | G18: =30/39 -> 0.7692307692 | H18: 0.8341880342
C22: nprl-3 (lf) | D22: On HK food | E22: 0.4786324786 | F22: 0.4095238095 | G22: 0.2941176471 | H22: 0.3940913117
D23: Wandering | E23: 0.5213675214 | F23: 0.5904761905 | G23: 0.7058823529 | H23: 0.6059086883
C34: The WT data is the same as that in Figure 3E, as the data for both pairs of figures were generated from the same set of experiments.

Sheet Figure 4-supplement 1
A1: Source data of Figure 4—figure supplement 1
C3: Flourescence Intensity measured by Image J
C5: Control RNAi | D5: ard-1 | E5: C25A1.5 | F5: F55F8.2 | G5: cytb-5.1 | H5: rps-23 | I5: vps-28 | J5: Y56A3A.18 | K5: elt-2
C6: 22.1 | D6: 31.8 | E6: 39.7 | F6: 20.3 | G6: 13.9 | H6: 14.5 | I6: 13.3 | J6: 15.7 | K6: 7
C7: 26.7 | D7: 17.5 | E7: 25.3 | F7: 18.8 | G7: 43.3 | H7: 15.7 | I7: 17.5 | J7: 16.8 | K7: 7
C8: 16.1 | D8: 19 | E8: 20.2 | F8: 21.9 | G8: 27.2 | H8: 23.2 | I8: 37.3 | J8: 30.7 | K8: 7
C9: 17.5 | D9: 24 | E9: 33.4 | F9: 17.9 | G9: 17.6 | H9: 17.8 | I9: 22.3 | J9: 29 | K9: 7
C10: 16.7 | D10: 17.6 | E10: 21.5 | F10: 14.8 | G10: 14.9 | H10: 21.44 | I10: 29.8 | J10: 31.4 | K10: 7
C11: 15.5 | D11: 21 | E11: 17.5 | F11: 12.9 | G11: 16.1 | H11: 18.8 | I11: 18.3 | J11: 57.4 | K11: 7
C12: 26.4 | D12: 19.9 | E12: 31.6 | F12: 10.8 | G12: 15.6 | H12: 21.2 | I12: 18.6 | J12: 29.1 | K12: 7
C13: 18.4 | D13: 14.8 | E13: 13.5 | F13: 12.4 | H13: 12.4 | I13: 33.5 | J13: 26.4 | K13: 7
C14: 44.2 | D14: 12.6 | E14: 40.2 | F14: 15.9 | H14: 11.1 | J14: 28.8 | K14: 7
C15: 19.3 | D15: 14.4 | F15: 12.5 | H15: 15.4 | J15: 20.3 | K15: 7
C16: 27.24 | D16: 13 | F16: 42.1 | H16: 24.6
C17: 14.4 | D17: 12.5 | F17: 22.5 | H17: 13.1
C18: 20.4 | D18: 21.7 | F18: 9.3 | H18: 15
C19: 14.04 | D19: 16.24 | F19: 16.5 | H19: 20.3
D20: 18.7 | F20: 28.1 | H20: 12.4
D21: 26.3 | F21: 21.2 | H21: 16.4
D22: 17.7 | F22: 18.4 | H22: 14.5
D23: 25.6 | F23: 12.8 | H23: 12.5
D24: 12.5 | F24: 14.4 | H24: 13.8
D25: 12.7 | F25: 9.3 | H25: 12.8
D26: 40.3 | H26: 9.7
D27: 17.33
D28: 22.1
D29: 21.9
D30: 20.6
D31: 41.6
D32: 26.3
D33: 19.1
D34: 15.8
D35: 14.9
D36: 22.8
D37: 21.9
D38: 21.4
D39: 23.5
B40: Average | C40: =AVERAGE(C6:C39) -> 21.35571429 | D40: 20.56088235 | E40: 26.98888889 | F40: 17.64 | G40: 21.22857143 | H40: 16.03047619 | I40: 23.825 | J40: 28.56 | K40: 7

Sheet Figure 4-supplement 2A
A1: Source data of Figure 4—figure supplement 2A
B5: LGG-1::GFP puncta/seam cell
A7: WT (N2) (n=251 seam cell)
B8: puncta/seam cell
A9: Worm-1 | B9: 4 | C9: 3 | D9: 4 | E9: 4 | F9: 3 | G9: 3 | H9: 4 | I9: 4 | J9: 2
A10: worm-2 | B10: 2 | C10: 2
A11: worm-3 | B11: 2 | C11: 2
A12: worm-4 | B12: 1 | C12: 0 | D12: 2 | E12: 2 | F12: 0 | G12: 1 | H12: 2
A13: worm-5 | B13: 3 | C13: 2 | D13: 1 | E13: 3 | F13: 1 | G13: 1
A14: worm-6 | B14: 3 | C14: 3 | D14: 1 | E14: 0 | F14: 5 | G14: 3 | H14: 1 | I14: 0 | J14: 1 | K14: 2
A15: worm-7 | B15: 1 | C15: 2 | D15: 1 | E15: 0
A16: worm-8 | B16: 4 | C16: 1 | D16: 3 | E16: 1 | F16: 1 | G16: 3
A17: worm-9 | B17: 5 | C17: 7 | D17: 7
A18: worm-10 | B18: 3
A19: worm-11 | B19: 3 | C19: 6 | D19: 3 | E19: 0
A20: worm-12 | B20: 1 | C20: 1 | D20: 1 | E20: 1 | F20: 0 | G20: 1
A21: worm-13 | B21: 5 | C21: 4 | D21: 4 | E21: 5 | F21: 5 | G21: 7 | H21: 4
A22: worm-14 | B22: 1 | C22: 3 | D22: 2 | E22: 3 | F22: 3 | G22: 1 | H22: 3
A23: worm-15 | B23: 2 | C23: 3 | D23: 2 | E23: 5 | F23: 0
A24: worm-16 | B24: 1 | C24: 1 | D24: 2 | E24: 3 | F24: 2 | G24: 1 | H24: 1
A25: worm-17 | B25: 2 | C25: 5 | D25: 4 | E25: 6 | F25: 3 | G25: 4 | H25: 6
A26: worm-18 | B26: 2 | C26: 5 | D26: 3 | E26: 2 | F26: 2
A27: worm-19 | B27: 6 | C27: 3 | D27: 1 | E27: 4 | F27: 3 | G27: 1 | H27: 2 | I27: 2 | J27: 2 | K27: 2 | L27: 0 | M27: 2 | N27: 1 | O27: 3
A28: worm-20 | B28: 3 | C28: 2 | D28: 3 | E28: 1 | F28: 1 | G28: 1 | H28: 1
A29: worm-21 | B29: 2 | C29: 3 | D29: 3 | E29: 2 | F29: 2 | G29: 2
A30: worm-22 | B30: 1 | C30: 2 | D30: 0 | E30: 4 | F30: 3 | G30: 3
A31: worm-23 | B31: 3 | C31: 3 | D31: 4 | E31: 4 | F31: 1 | G31: 2
A32: worm-24 | B32: 0 | C32: 4 | D32: 2 | E32: 4 | F32: 3
A33: worm-25 | B33: 4 | C33: 6 | D33: 4 | E33: 3 | F33: 4 | G33: 5 | H33: 5
A34: worm-26 | B34: 4 | C34: 2 | D34: 2 | E34: 6 | F34: 7 | G34: 6
A35: worm-27 | B35: 2 | C35: 4 | D35: 3 | E35: 1 | F35: 0 | G35: 2
A36: worm-28 | B36: 2 | C36: 2 | D36: 3 | E36: 4 | F36: 4
A37: worm-29 | B37: 1 | C37: 0 | D37: 2 | E37: 1 | F37: 2 | G37: 1
A38: worm-30 | B38: 1 | C38: 1 | D38: 1 | E38: 0 | F38: 0
A39: worm-31 | B39: 4 | C39: 4 | D39: 11 | E39: 3 | F39: 1
A40: worm-32 | B40: 0 | C40: 0 | D40: 2 | E40: 3 | F40: 4 | G40: 0 | H40: 1
A41: worm-33 | B41: 2 | C41: 0 | D41: 2 | E41: 3 | F41: 3 | G41: 2 | H41: 2
A42: worm-34 | B42: 2 | C42: 5 | D42: 1 | E42: 4 | F42: 3 | G42: 3
A43: worm-35 | B43: 1 | C43: 2 | D43: 4 | E43: 3 | F43: 0 | G43: 1
A44: worm-36 | B44: 4 | C44: 4 | D44: 4 | E44: 2
A45: worm-37 | B45: 0 | C45: 0 | D45: 1 | E45: 1 | F45: 2 | G45: 1 | H45: 0 | I45: 1
A46: worm-38 | B46: 2 | C46: 1 | D46: 3
A47: worm-39 | B47: 2 | C47: 2 | D47: 6 | E47: 2 | F47: 4 | G47: 6
A48: worm-40 | B48: 1 | C48: 1 | D48: 3 | E48: 3 | F48: 2 | G48: 1
A49: worm-41 | B49: 5 | C49: 1 | D49: 3 | E49: 3
A50: worm-42 | B50: 1 | C50: 1 | D50: 1 | E50: 2 | F50: 2 | G50: 0
A51: worm-43 | B51: 1 | C51: 0 | D51: 1 | E51: 0 | F51: 0 | G51: 0
N53: Average | O53: =AVERAGE(B9:O52) -> 2.398406375
A62: nprl-3 (lf) (n=467 seam cell)
B63: puncta/seam cell
A64: Worm-1 | B64: 0 | C64: 0 | D64: 1 | E64: 0
A65: worm-2 | B65: 0 | C65: 0 | D65: 0 | E65: 0
A66: worm-3 | B66: 0 | C66: 0 | D66: 0
A67: worm-4 | B67: 0 | C67: 0 | D67: 0
A68: worm-5 | B68: 0 | C68: 0 | D68: 0 | E68: 0 | F68: 0 | G68: 1
A69: worm-6 | B69: 2 | C69: 1 | D69: 1 | E69: 0 | F69: 2 | G69: 1
A70: worm-7 | B70: 2 | C70: 2 | D70: 4 | E70: 2 | F70: 2 | G70: 3 | H70: 1
A71: worm-8 | B71: 2 | C71: 2 | D71: 3 | E71: 3 | F71: 2 | G71: 2 | H71: 2 | I71: 1
A72: worm-9 | B72: 0 | C72: 0 | D72: 1 | E72: 0 | F72: 0 | G72: 0 | H72: 0 | I72: 0 | J72: 0 | K72: 0
A73: worm-10 | B73: 0 | C73: 0 | D73: 0 | E73: 0 | F73: 0 | G73: 0
A74: worm-11 | B74: 1 | C74: 0 | D74: 0 | E74: 0 | F74: 0 | G74: 0
A75: worm-12 | B75: 0 | C75: 0 | D75: 0 | E75: 0
A76: worm-13 | B76: 0 | C76: 0 | D76: 0 | E76: 0
A77: worm-14 | B77: 2 | C77: 2 | D77: 1 | E77: 1
A78: worm-15 | B78: 0 | C78: 0 | D78: 0
A79: worm-16 | B79: 0 | C79: 0 | D79: 0 | E79: 0 | F79: 1 | G79: 0 | H79: 0
A80: worm-17 | B80: 0 | C80: 0 | D80: 0 | E80: 0
A81: worm-18 | B81: 1 | C81: 0 | D81: 0 | E81: 0 | F81: 0
A82: worm-19 | B82: 0 | C82: 0 | D82: 0 | E82: 0 | F82: 0 | G82: 0
A83: worm-20 | B83: 0 | C83: 0
A84: worm-21 | B84: 0 | C84: 0 | D84: 0
A85: worm-22 | B85: 0 | C85: 0 | D85: 0 | E85: 0 | F85: 0 | G85: 0 | H85: 0
A86: worm-23 | B86: 0 | C86: 0 | D86: 0 | E86: 0 | F86: 0 | G86: 0 | H86: 0 | I86: 0
A87: worm-24 | B87: 0 | C87: 1 | D87: 0
A88: worm-25 | B88: 0 | C88: 1 | D88: 1 | E88: 1 | F88: 1 | G88: 0 | H88: 1
A89: worm-26 | B89: 0 | C89: 0 | D89: 0
A90: worm-27 | B90: 2 | C90: 1 | D90: 0 | E90: 1 | F90: 1 | G90: 0 | H90: 2 | I90: 2
A91: worm-28 | B91: 1 | C91: 0 | D91: 1 | E91: 0
A92: worm-29 | B92: 0 | C92: 0 | D92: 0 | E92: 0
A93: worm-30 | B93: 0 | C93: 1 | D93: 0 | E93: 2 | F93: 0 | G93: 0 | H93: 1
A94: worm-31 | B94: 0 | C94: 1 | D94: 1 | E94: 1 | F94: 2 | G94: 1
A95: worm-32 | B95: 0 | C95: 1 | D95: 1
A96: worm-33 | B96: 3 | C96: 2 | D96: 0 | E96: 3 | F96: 2 | G96: 2 | H96: 0 | I96: 0 | J96: 1 | K96: 1
A97: worm-34 | B97: 0 | C97: 0 | D97: 0 | E97: 2 | F97: 1 | G97: 0 | H97: 0 | I97: 0
A98: worm-35 | B98: 2 | C98: 1 | D98: 2 | E98: 1 | F98: 2 | G98: 0
A99: worm-36 | B99: 2 | C99: 0 | D99: 0 | E99: 1 | F99: 1
A100: worm-37 | B100: 1 | C100: 1 | D100: 2 | E100: 2 | F100: 0 | G100: 1
A101: worm-38 | B101: 2 | C101: 0 | D101: 1 | E101: 1 | F101: 1
A102: worm-39 | B102: 0 | C102: 0 | D102: 1 | E102: 0 | F102: 0 | G102: 0
A103: worm-40 | B103: 0 | C103: 0 | D103: 0 | E103: 0 | F103: 2
A104: worm-41 | B104: 2 | C104: 4 | D104: 0 | E104: 1 | F104: 1 | G104: 1
A105: worm-42 | B105: 2 | C105: 1 | D105: 2 | E105: 4 | F105: 3 | G105: 2 | H105: 3
A106: worm-43 | B106: 1 | C106: 0 | D106: 1 | E106: 0 | F106: 0
A107: worm-44 | B107: 1 | C107: 0 | D107: 0 | E107: 0 | F107: 2 | G107: 1 | H107: 1 | I107: 0 | J107: 0 | K107: 0 | L107: 0
A108: worm-45 | B108: 1 | C108: 0 | D108: 1 | E108: 0 | F108: 0 | G108: 1
A109: worm-46 | B109: 0 | C109: 0 | D109: 0 | E109: 0
A110: worm-47 | B110: 0 | C110: 1 | D110: 1 | E110: 0
A111: worm-48 | B111: 1 | C111: 1 | D111: 0 | E111: 0 | F111: 0 | G111: 0
A112: worm-49 | B112: 0 | C112: 0
A113: worm-50 | B113: 2 | C113: 0 | D113: 1 | E113: 0 | F113: 1 | G113: 1 | H113: 0 | I113: 0
A114: worm-51 | B114: 2 | C114: 1 | D114: 0 | E114: 2 | F114: 2 | G114: 0 | H114: 0 | I114: 1 | J114: 0 | K114: 1
A115: worm-52 | B115: 1 | C115: 1 | D115: 1 | E115: 0 | F115: 2 | G115: 2 | H115: 1 | I115: 1 | J115: 1 | K115: 1
A116: worm-53 | B116: 1 | C116: 1 | D116: 1 | E116: 1 | F116: 0 | G116: 0 | H116: 2 | I116: 0 | J116: 1 | K116: 1 | L116: 1
A117: worm-54 | B117: 2 | C117: 1 | D117: 2 | E117: 2 | F117: 3 | G117: 3 | H117: 0 | I117: 0 | J117: 2
A118: worm-55 | B118: 0 | C118: 1 | D118: 1 | E118: 1 | F118: 1 | G118: 0 | H118: 0 | I118: 2 | J118: 1 | K118: 0 | L118: 1
A119: worm-56 | B119: 1 | C119: 0 | D119: 0 | E119: 0 | F119: 0 | G119: 1 | H119: 1 | I119: 0 | J119: 0
A120: worm-57 | B120: 0 | C120: 0 | D120: 0 | E120: 0
A121: worm-58 | B121: 1 | C121: 0 | D121: 0 | E121: 1 | F121: 0
A122: worm-59 | B122: 0 | C122: 3 | D122: 1 | E122: 0 | F122: 2 | G122: 0
A123: worm-60 | B123: 2 | C123: 2 | D123: 1 | E123: 2
A124: worm-61 | B124: 1 | C124: 1 | D124: 2 | E124: 1 | F124: 1 | G124: 0
A125: worm-62 | B125: 1 | C125: 1 | D125: 1
A126: worm-63 | B126: 0 | C126: 1 | D126: 1 | E126: 0 | F126: 0 | G126: 0
A127: worm-64 | B127: 1 | C127: 0 | D127: 0 | E127: 1
A128: worm-65 | B128: 0 | C128: 1 | D128: 0 | E128: 0 | F128: 0 | G128: 0 | H128: 0 | I128: 0
A129: worm-66 | B129: 0 | C129: 0 | D129: 0 | E129: 0
A130: worm-67 | B130: 1 | C130: 1 | D130: 0 | E130: 1 | F130: 0 | G130: 0
A131: worm-68 | B131: 1 | C131: 1 | D131: 2 | E131: 1 | F131: 0 | G131: 1
A132: worm-69 | B132: 3 | C132: 3 | D132: 2 | E132: 2 | F132: 2 | G132: 1
A133: worm-70 | B133: 0 | C133: 2 | D133: 2 | E133: 0 | F133: 2
A134: worm-71 | B134: 2 | C134: 1 | D134: 0 | E134: 0 | F134: 0
A135: worm-72 | B135: 0 | C135: 0 | D135: 0 | E135: 2 | F135: 0 | G135: 0 | H135: 0
A136: worm-73 | B136: 3 | C136: 2 | D136: 3 | E136: 0
A137: worm-74 | B137: 2 | C137: 0 | D137: 0 | E137: 1 | F137: 1 | G137: 0
A138: worm-75 | B138: 2 | C138: 1 | D138: 0 | E138: 0
A139: worm-76 | B139: 2 | C139: 0 | D139: 1 | E139: 0
A140: worm-77 | B140: 0 | C140: 0 | D140: 0 | E140: 0 | F140: 0 | G140: 0
A141: worm-78 | B141: 1 | C141: 0 | D141: 0 | E141: 0
A142: worm-79 | B142: 1 | C142: 2 | D142: 2 | E142: 1 | F142: 2 | G142: 0 | H142: 0 | I142: 0
A143: worm-80 | B143: 2 | C143: 2 | D143: 0
A144: worm-81 | B144: 1 | C144: 2 | D144: 0 | E144: 2 | F144: 0 | G144: 0 | H144: 1 | I144: 2
K146: Average | L146: =AVERAGE(B64:L144) -> 0.6980728051

Sheet Figure 4-supplement 2B
A1: Source data of Figure 4—figure supplement 2B
B3: LGG-1::GFP puncta/seam cell
B5: Control RNAi (n=73 seam cell)
B6: puncta/seam cell
A7: Worm-1 | B7: 0 | C7: 0 | D7: 0 | E7: 0 | F7: 0
A8: worm-2 | B8: 1 | C8: 0 | D8: 0 | E8: 0 | F8: 1 | G8: 0 | H8: 0
A9: worm-3 | B9: 0 | C9: 0 | D9: 0
A10: worm-4 | B10: 0 | C10: 0 | D10: 0 | E10: 0 | F10: 0 | G10: 0 | H10: 0
A11: worm-5 | B11: 0 | C11: 0 | D11: 0 | E11: 0 | F11: 0
A12: worm-6 | B12: 3 | C12: 3 | D12: 0 | E12: 2 | F12: 1
A13: worm-7 | B13: 0 | C13: 0 | D13: 0 | E13: 1 | F13: 0 | G13: 0
A14: worm-8 | B14: 0 | C14: 0 | D14: 0 | E14: 0 | F14: 1
A15: worm-9 | B15: 0 | C15: 0 | D15: 0
A16: worm-10 | B16: 0 | C16: 2 | D16: 2 | E16: 0 | F16: 0
A17: worm-11 | B17: 4 | C17: 4 | D17: 1 | E17: 3
A18: worm-12 | B18: 0 | C18: 0 | D18: 0 | E18: 1
A19: worm-13 | B19: 0 | C19: 0 | D19: 0 | E19: 0
A20: worm-14 | B20: 0 | C20: 0
A21: worm-15 | B21: 0 | C21: 1 | D21: 0
A22: worm-16 | B22: 0 | C22: 0 | D22: 0 | E22: 1 | F22: 0
I24: Average | J24: =AVERAGE(B7:H25) -> 0.4383561644
B29: daf-15 RNAi (n=97 seam cell)
B30: puncta/seam cell
A31: Worm-1 | B31: 1 | C31: 3 | D31: 1 | E31: 2 | F31: 1
A32: worm-2 | B32: 2 | C32: 2 | D32: 0 | E32: 2 | F32: 1 | G32: 1 | H32: 0
A33: worm-3 | B33: 2 | C33: 3 | D33: 1 | E33: 1 | F33: 0
A34: worm-4 | B34: 1 | C34: 1 | D34: 1 | E34: 0
A35: worm-5 | B35: 1 | C35: 0 | D35: 2 | E35: 0 | F35: 0
A36: worm-6 | B36: 2 | C36: 2 | D36: 0 | E36: 2 | F36: 0
A37: worm-7 | B37: 2 | C37: 2 | D37: 1 | E37: 0 | F37: 0
A38: worm-8 | B38: 4 | C38: 4
A39: worm-9 | B39: 5 | C39: 2 | D39: 1 | E39: 1 | F39: 3 | G39: 2 | H39: 1
A40: worm-10 | B40: 1 | C40: 3 | D40: 0 | E40: 1 | F40: 3 | G40: 0
A41: worm-11 | B41: 0 | C41: 2 | D41: 2 | E41: 3 | F41: 3 | G41: 0
A42: worm-12 | B42: 3 | C42: 0 | D42: 1 | E42: 0
A43: worm-13 | B43: 4 | C43: 2 | D43: 2
A44: worm-14 | B44: 3 | C44: 0 | D44: 2 | E44: 0
A45: worm-15 | B45: 2 | C45: 0 | D45: 1 | E45: 1 | F45: 1 | G45: 1 | H45: 0
A46: worm-16 | B46: 0 | C46: 3 | D46: 3 | E46: 2
A47: worm-17 | B47: 0 | C47: 0 | D47: 2 | E47: 0
A48: worm-18 | B48: 2 | C48: 1 | D48: 4 | E48: 1
A49: worm-19 | B49: 0 | C49: 6 | D49: 4 | E49: 1
A50: worm-20 | B50: 1 | C50: 1 | D50: 3 | E50: 3 | F50: 0 | G50: 3
A51: worm-21 | B51: 0 | I51: Average | J51: =AVERAGE(B31:H51) -> 1.469387755

Sheet Figure 4-supplement 2D
A1: Source data of Figure 4—figure supplement 2D
D4: Vha-6::mCherry localization
D5: Normal Localization | E5: Mis-localization | F5: total
C6: HK | D6: 2 | E6: 27 | F6: =SUM(D6:E6) -> 29
C7: HK+VB2 | D7: 22 | E7: 4 | F7: 26
C8: Live | D8: 20 | E8: 0 | F8: 20

Sheet Figure 4-supplement 2F
A1: Source data of Figure 4—figure supplement 2F
E4: NO. of worm on each location | J4: Percentage of worm on each loaction
E5: HK | F5: HK+VB2 | G5: Total worm | J5: HK | K5: HK+VB2
C6: RNAi Conrtol | D6: Replicate-1 | E6: 19 | F6: 46 | G6: 118 | J6: =E6/G6 -> 0.1610169492 | K6: =F6/G6 -> 0.3898305085
D7: Replicate-2 | E7: 27 | F7: 38 | G7: 145 | J7: 0.1862068966 | K7: 0.2620689655
D8: Replicate-3 | E8: 12 | F8: 25 | G8: 95 | J8: 0.1263157895 | K8: 0.2631578947
D9: Replicate-4 | E9: 34 | F9: 56 | G9: 199 | J9: 0.1708542714 | K9: 0.2814070352
D10: Replicate-5 | E10: 32 | F10: 45 | G10: 214 | J10: 0.1495327103 | K10: 0.2102803738
D11: Replicate-6 | E11: 26 | F11: 43 | G11: 151 | J11: 0.1721854305 | K11: 0.2847682119
G12: 922 | J12: =AVERAGE(J6:J11) -> 0.1610186745 | K12: =AVERAGE(K6:K11) -> 0.2819188316
I13: Average | J13: =AVERAGE(J6:J12) -> 0.1610186745 | K13: =AVERAGE(K6:K12) -> 0.2819188316
E15: NO. of worm on each location | J15: Percentage of worm on each loaction
E16: HK | F16: HK+VB2 | G16: Total worm
C17: daf-15 RNAi | D17: Replicate-1 | E17: 19 | F17: 19 | G17: 104 | J17: =E17/G17 -> 0.1826923077 | K17: =F17/G17 -> 0.1826923077
D18: Replicate-2 | E18: 39 | F18: 22 | G18: 137 | J18: 0.2846715328 | K18: 0.1605839416
D19: Replicate-3 | E19: 26 | F19: 16 | G19: 129 | J19: 0.2015503876 | K19: 0.1240310078
D20: Replicate-4 | E20: 26 | F20: 36 | G20: 161 | J20: 0.1614906832 | K20: 0.2236024845
D21: Replicate-5 | E21: 22 | F21: 20 | G21: 129 | J21: 0.1705426357 | K21: 0.1550387597
D22: Replicate-6 | E22: 25 | F22: 21 | G22: 72 | J22: 0.3472222222 | K22: 0.2916666667
D23: Replicate-7 | E23: 17 | F23: 28 | G23: 103 | J23: 0.1650485437 | K23: 0.2718446602
D24: Replicate-8 | E24: 6 | F24: 9 | G24: 71 | J24: 0.08450704225 | K24: 0.1267605634
D25: Replicate-9 | E25: 25 | F25: 23 | G25: 84 | J25: 0.2976190476 | K25: 0.2738095238
D26: Replicate-10 | E26: 22 | F26: 20 | G26: 97 | J26: 0.2268041237 | K26: 0.206185567
D27: Replicate-11 | E27: 11 | F27: 12 | G27: 45 | J27: 0.2444444444 | K27: 0.2666666667
G28: 1132 | I28: Average | J28: =AVERAGE(J17:J27) -> 0.2151448155 | K28: =AVERAGE(K17:K27) -> 0.2075347408

Sheet Figure 4-supplement 2G
A1: Source data of Figure 4—figure supplement 2G
C3: Flourescence Intensity was measured by ImageJ in each nucleus
D4: Total nucleus=33 | J4: Average
B5: daf-15 RNAi | C5: Worm-1 | D5: 28.14 | E5: 28.998 | F5: 39.466 | G5: 29.227 | H5: 23.258 | J5: =AVERAGE(D5:I5) -> 29.8178
C6: worm-2 | D6: 17.606 | E6: 16.735 | F6: 19.3 | G6: 20.153 | H6: 20.142 | J6: 18.7872
C7: worm-3 | D7: 22.858 | E7: 12.224 | F7: 15.483 | G7: 15.572 | H7: 11.215 | J7: 15.4704
C8: worm-4 | D8: 15.344 | E8: 10.133 | F8: 15.763 | G8: 12.39 | J8: 13.4075
C9: worm-5 | D9: 28.548 | E9: 29.532 | F9: 30.86 | G9: 29.062 | J9: 29.5005
C10: worm-6 | D10: 21.685 | E10: 29.428 | F10: 14.004 | G10: 13.366 | H10: 23.235 | J10: 20.3436
C11: worm-7 | D11: 11.408 | E11: 14.478 | F11: 14.137 | G11: 12.825 | H11: 12.166 | J11: 13.0028
J12: =AVERAGE(J5:J11) -> 20.04711429
D14: Total nucleus=34
B15: Control RNAi | C15: Worm-1 | D15: 31.335 | E15: 25.937 | F15: 23.42 | G15: 22.005 | J15: =AVERAGE(D15:I15) -> 25.67425
C16: worm-2 | D16: 36.017 | E16: 38.153 | F16: 29.223 | G16: 27.838 | J16: 32.80775
C17: worm-3 | D17: 23.588 | E17: 26.295 | F17: 23.283 | J17: 24.38866667
C18: worm-4 | D18: 39.38 | E18: 41.639 | F18: 35.414 | J18: 38.811
C19: worm-5 | D19: 42.305 | E19: 61.923 | F19: 49.538 | G19: 36.409 | J19: 47.54375
C20: worm-6 | D20: 38.985 | E20: 37.354 | F20: 45.738 | G20: 34.645 | J20: 39.1805
C21: worm-7 | D21: 47.305 | E21: 37.499 | F21: 34.32 | J21: 39.708
C22: worm-8 | D22: 41.801 | E22: 36.174 | F22: 38.223 | J22: 38.73266667
C23: worm-9 | D23: 43.918 | E23: 49.707 | F23: 46.068 | J23: 46.56433333
C24: worm-10 | D24: 43.729 | E24: 38.661 | F24: 33.308 | J24: 38.566
J25: =AVERAGE(J15:J24) -> 37.19769167
